bitfinex-derivatives/quotes_ETHF0:USTF0_20250102
["timestamp","ask_amount","ask_price","bid_price","bid_amount"]
[1735787272549,0.72169,3393.0,3392.9,0.2953]
[1735787273348,0.72169,3393.0,3392.8,1.169]
[1735787273349,0.72169,3393.0,3392.8,1.46431]
[1735787273557,0.72169,3393.0,3392.8,0.29531]
[1735787273758,0.0791,3392.9,3392.8,1.46431]
[1735787275860,0.42,3393.6,3393.5,0.29525]
[1735787280762,0.42,3393.6,3393.2,3.2078]
[1735787280963,0.71525,3393.6,3393.3,0.29526]
[1735787281163,0.71525,3393.6,3393.4,0.29526]
[1735787281460,0.29527,3393.3,3393.2,3.2078]
[1735787281952,0.53097,3393.3,3393.2,3.2078]
[1735787283061,0.53097,3393.3,3393.2,3.50308]
[1735787283062,0.2357,3393.3,3393.2,3.50308]
[1735787283259,0.2357,3393.3,3393.2,3.2078]
[1735787283458,0.2357,3393.3,3393.2,3.50308]
[1735787286767,0.2357,3393.3,3393.2,4.67108]
[1735787287064,0.2357,3393.3,3393.2,3.50308]
[1735787288470,0.2357,3393.3,3393.2,3.95788]
[1735787293572,13.70537648,3394.8,3393.2,8.6626]
[1735787293777,13.70537648,3394.8,3394.2,0.29519]
[1735787293778,0.4309,3394.3,3394.2,0.29519]
[1735787293981,0.4309,3394.3,3394.2,1.46319]
[1735787294282,1.1674,3394.3,3394.2,1.46319]
[1735787294578,1.1674,3394.3,3394.2,1.168]
[1735787294579,1.46258,3394.3,3394.2,1.168]
[1735787294775,1.1674,3394.3,3394.2,1.168]
[1735787295169,1.46258,3394.3,3394.2,1.168]
[1735787295375,1.46258,3394.3,3394.2,0.4683]
[1735787299784,0.29522,3393.8,3393.7,3.50303]
[1735787299985,0.29522,3393.8,3393.7,0.29523]
[1735787300775,0.75182,3393.8,3393.7,0.29523]
[1735787301186,0.4566,3393.8,3393.7,0.29523]
[1735787301389,0.75182,3393.8,3393.7,0.29523]
[1735787302383,0.75182,3393.8,3393.6,1.168]
[1735787302384,0.29523,3393.7,3393.6,1.168]
[1735787302585,0.29524,3393.6,3393.5,0.29525]
[1735787303481,2.37615507,3393.6,3393.3,3.2078]
[1735787303686,0.29526,3393.4,3393.3,3.2078]
[1735787304589,0.29528,3393.2,3393.1,0.29528]
[1735787305275,0.73778,3393.2,3393.1,0.29528]
[1735787307492,0.4425,3393.2,3393.1,0.29528]
[1735787307687,0.8784,3393.2,3393.1,0.29528]
[1735787309196,0.4425,3393.2,3393.1,0.29528]
[1735787312392,0.73778,3393.2,3393.0,0.29529]
[1735787312590,0.29529,3393.1,3392.9,3.9441]
[1735787312883,0.4425,3393.2,3393.0,0.29529]
[1735787313089,0.4425,3393.2,3392.9,3.6488]
[1735787313090,0.4425,3393.2,3393.1,0.29529]
[1735787315594,0.4507,3393.3,3392.9,3.6488]
[1735787315894,0.4507,3393.3,3393.2,0.29528]
[1735787316990,0.74597,3393.3,3393.1,0.29528]
[1735787317590,0.4507,3393.3,3393.1,0.29528]
[1735787318082,0.29528,3393.2,3392.9,3.9441]
[1735787318393,0.29529,3393.0,3392.9,3.9441]
[1735787320087,0.29529,3393.0,3392.9,3.6488]
[1735787320288,0.29529,3393.0,3392.9,0.441]
[1735787320486,0.29529,3393.0,3392.8,1.46331]
[1735787320700,0.7463,3392.9,3392.8,1.168]
[1735787321791,0.29532,3392.8,3392.6,0.72372]
[1735787322097,0.29532,3392.8,3392.7,1.168]
[1735787322395,0.451,3392.9,3392.6,0.4284]
[1735787322688,0.29536,3392.3,3392.2,1.168]
[1735787323596,0.461,3392.3,3392.2,1.46336]
[1735787324189,0.461,3392.3,3392.2,0.29536]
[1735787324591,0.4546,3392.6,3392.1,4.3758]
[1735787324794,0.4546,3392.6,3392.5,0.29534]
[1735787326093,3.13777507,3392.7,3392.3,0.4283]
[1735787326094,2.84245507,3392.7,3392.6,0.29533]
[1735787326990,3.07825507,3392.7,3392.6,0.29533]
[1735787327496,3.07825507,3392.7,3392.4,0.8656]
[1735787327497,3.37358507,3392.7,3392.5,0.29533]
[1735787327885,0.29533,3392.6,3392.5,0.29533]
[1735787328091,0.29533,3392.6,3392.4,0.72034]
[1735787329593,0.29536,3392.3,3392.2,1.168]
[1735787329890,2.67151507,3392.3,3392.2,1.168]
[1735787333292,2.67151507,3392.3,3391.9,0.4603]
[1735787333597,1.18607,3392.2,3392.0,0.29538]
[1735787334091,1.18607,3392.2,3391.8,1.168]
[1735787334092,0.4654,3392.1,3391.8,1.168]
[1735787334396,0.29539,3392.0,3391.8,1.4634]
[1735787335498,0.29539,3392.0,3391.8,0.2954]
[1735787335898,0.76078,3392.1,3391.9,0.29539]
[1735787336802,0.29539,3392.0,3391.9,0.29539]
[1735787337905,0.76078,3392.1,3391.9,0.29539]
[1735787338106,0.4654,3392.1,3391.6,4.8366]
[1735787338406,0.4654,3392.1,3392.0,0.29538]
[1735787340909,0.76077,3392.1,3392.0,0.29538]
[1735787342708,0.4654,3392.1,3392.0,0.29538]
[1735787343505,0.8907,3392.2,3391.7,1.6234]
[1735787343706,0.8907,3392.2,3392.1,0.29537]
[1735787344203,1.18606,3392.2,3392.1,0.29537]
[1735787344409,0.29538,3392.1,3392.0,0.29537]
[1735787344610,1.18607,3392.2,3392.0,0.29537]
[1735787346415,0.29537,3392.1,3392.0,0.29537]
[1735787348920,0.8907,3392.2,3391.7,1.168]
[1735787349225,0.29539,3392.0,3391.9,0.29538]
[1735787349723,1.18607,3392.2,3392.1,0.29537]
[1735787349926,0.8907,3392.2,3392.1,0.29537]
[1735787350619,5.58395507,3392.9,3392.7,0.29531]
[1735787350818,0.73891,3392.8,3392.7,0.29531]
[1735787351021,0.29533,3392.7,3392.6,0.29532]
[1735787351731,0.4436,3392.8,3392.5,0.29533]
[1735787351732,0.29534,3392.6,3392.5,0.29533]
[1735787352025,2.37615507,3392.6,3392.1,0.4398]
[1735787352423,2.37615507,3392.6,3392.3,0.29535]
[1735787352424,0.29536,3392.4,3392.3,0.29535]
[1735787353725,0.29536,3392.3,3392.2,0.29536]
[1735787353926,1.65536,3392.3,3392.2,0.29536]
[1735787354625,3.73615507,3392.3,3392.0,3.2078]
[1735787354831,0.29537,3392.2,3392.0,3.50317]
[1735787355133,0.29537,3392.2,3392.0,3.2078]
[1735787355422,0.29537,3392.2,3392.1,0.29537]
[1735787355821,3.73615507,3392.3,3392.1,0.29537]
[1735787356126,3.73615507,3392.3,3391.5,3.2078]
[1735787356430,2.67152507,3392.2,3392.1,0.29537]
[1735787356625,0.29538,3392.1,3392.0,0.29538]
[1735787357024,2.37615507,3392.2,3392.1,0.29537]
[1735787357025,2.67152507,3392.2,3392.1,0.29537]
[1735787357221,2.37615507,3392.2,3392.1,0.29537]
[1735787357936,2.37615507,3392.2,3392.0,0.29538]
[1735787357937,0.29538,3392.1,3392.0,0.29538]
[1735787358235,0.29541,3391.7,3391.5,3.2078]
[1735787358534,0.71672,3391.6,3391.5,3.2078]
[1735787358833,1.61452,3391.6,3391.5,3.2078]
[1735787360429,1.61452,3391.6,3391.5,3.50322]
[1735787361527,1.61452,3391.6,3391.5,3.2078]
[1735787365432,1.3191,3391.6,3391.1,0.29546]
[1735787365628,0.29545,3391.2,3391.1,0.29546]
[1735787365834,2.37615507,3391.4,3391.0,0.29547]
[1735787365835,0.29547,3391.1,3391.0,0.29547]
[1735787366032,0.29547,3391.0,3390.9,4.67128]
[1735787366335,0.4535,3391.0,3390.9,4.3758]
[1735787366531,0.4535,3391.0,3390.9,4.67128]
[1735787367136,0.8531,3391.1,3391.0,0.29547]
[1735787367832,0.8531,3391.1,3390.9,4.67127]
[1735787367833,1.14856,3391.1,3390.9,4.67127]
[1735787368034,1.14856,3391.1,3390.9,4.3758]
[1735787368229,3.52471507,3391.1,3390.9,3.50327]
[1735787368432,0.4611,3391.0,3390.9,3.50327]
[1735787369233,0.4611,3391.0,3390.9,3.2078]
[1735787369535,0.75657,3391.0,3390.9,3.2078]
[1735787369734,0.4611,3391.0,3390.9,3.50328]
[1735787369935,0.75657,3391.0,3390.9,3.2078]
[1735787370737,0.75657,3391.0,3390.9,3.50328]
[1735787371836,0.75657,3391.0,3390.9,3.2078]
[1735787372137,0.4611,3391.0,3390.9,3.2078]
[1735787372336,0.75657,3391.0,3390.9,3.2078]
[1735787373638,0.75657,3391.0,3390.9,3.50328]
[1735787373838,0.75657,3391.0,3390.9,3.2078]
[1735787374340,2.37615507,3391.1,3391.0,0.29547]
[1735787374848,0.4388,3391.4,3391.3,0.29544]
[1735787375132,6.49095507,3391.7,3391.1,0.4668]
[1735787375340,6.78636507,3391.7,3391.6,0.29542]
[1735787375541,6.49095507,3391.7,3391.6,0.29542]
[1735787375738,6.78636507,3391.7,3391.6,0.29542]
[1735787376239,0.29542,3391.6,3391.5,0.29542]
[1735787377440,6.49095507,3391.7,3391.2,0.4481]
[1735787377636,3.57856507,3391.7,3391.6,0.29542]
[1735787379838,3.81436507,3391.7,3391.6,0.29542]
[1735787381644,0.29542,3391.6,3391.5,0.29542]
[1735787384842,0.29311045,3391.6,3391.5,0.29542]
[1735787385449,0.29543,3391.5,3391.4,0.29543]
[1735787385638,0.72143,3391.5,3391.4,0.29543]
[1735787386738,0.426,3391.5,3391.4,0.29543]
[1735787390349,0.29542,3391.6,3391.2,0.4481]
[1735787390551,3.81437507,3391.7,3391.6,0.29542]
[1735787391550,0.29542,3391.6,3391.5,0.29542]
[1735787392351,3.51895507,3391.7,3391.3,0.4545]
[1735787392647,0.29543,3391.5,3391.4,0.29543]
[1735787397351,0.29544,3391.3,3391.2,0.74355]
[1735787397753,0.29545,3391.2,3391.1,4.67125]
[1735787398546,0.29545,3391.2,3391.1,3.50325]
[1735787400352,0.4497,3391.4,3391.1,3.2078]
[1735787400554,0.74514,3391.4,3391.3,0.29544]
[1735787400953,0.4497,3391.4,3391.3,0.29544]
[1735787401460,0.98093,3391.4,3391.3,0.29544]
[1735787401863,0.2358,3391.4,3391.3,0.29544]
[1735787402561,0.2358,3391.4,3391.3,0.76104]
[1735787403158,6.95389796,3392.0,3391.9,0.29539]
[1735787403462,6.95389796,3392.0,3391.9,1.46339]
[1735787403965,10.79294648,3392.2,3391.9,1.6259]
[1735787403966,2.37615507,3392.2,3391.9,1.6259]
[1735787404165,0.29537,3392.1,3392.0,0.29537]
[1735787405464,2.37615507,3392.2,3392.1,0.29537]
[1735787405666,1.57936,3392.3,3392.2,0.29536]
[1735787405965,1.284,3392.3,3392.2,0.29536]
[1735787406266,1.57936,3392.3,3392.2,0.29536]
[1735787406460,0.29537,3392.2,3392.1,0.29537]
[1735787407863,1.15556,3392.3,3392.2,0.29536]
[1735787408369,1.15556,3392.3,3391.9,2.4918]
[1735787408370,0.29536,3392.2,3392.1,0.29537]
[1735787408863,0.8602,3392.3,3391.9,2.4918]
[1735787409062,1.15556,3392.3,3392.2,0.29536]
[1735787410364,0.8602,3392.3,3392.2,0.29536]
[1735787411264,1.15556,3392.3,3392.2,0.29536]
[1735787412167,1.15556,3392.3,3391.9,2.4918]
[1735787412168,0.29537,3392.2,3392.1,0.29537]
[1735787412367,2.67152507,3392.2,3391.9,1.6259]
[1735787412868,2.67152507,3392.2,3392.0,0.29538]
[1735787413569,2.67152507,3392.2,3392.1,0.29537]
[1735787413769,2.67152507,3392.2,3392.0,0.29537]
[1735787413972,2.67152507,3392.2,3392.1,0.29537]
[1735787415066,2.67152507,3392.2,3392.0,0.29538]
[1735787415271,2.37615507,3392.2,3391.9,1.6259]
[1735787415466,0.2358,3392.1,3392.0,0.29538]
[1735787417270,0.4716,3392.1,3392.0,0.29538]
[1735787417773,0.76697,3392.1,3392.0,0.29538]
[1735787418170,0.4716,3392.1,3392.0,0.29538]
[1735787426187,1.51726667,3392.1,3392.0,0.29538]
[1735787427991,1.81263667,3392.1,3392.0,0.29538]
[1735787428194,1.51726667,3392.1,3392.0,0.29538]
[1735787432686,0.4716,3392.1,3392.0,1.34104667]
[1735787432886,0.4716,3392.1,3392.0,1.80094667]
[1735787433289,0.4716,3392.1,3392.0,42.60094667]
[1735787433702,0.4716,3392.1,3392.0,42.72129773]
[1735787434099,0.4716,3392.1,3392.0,42.60094667]
[1735787434300,0.4716,3392.1,3392.0,41.55528]
[1735787435596,0.4716,3392.1,3392.0,0.75528]
[1735787436006,0.4716,3392.1,3392.0,3.96308]
[1735787436702,0.4716,3392.1,3392.0,4.67118]
[1735787437102,0.4716,3392.1,3392.0,3.50318]
[1735787437310,0.4716,3392.1,3392.0,4.67118]
[1735787445310,1.3353,3392.1,3392.0,3.50318]
[1735787447512,1.3353,3392.1,3392.0,0.29538]
[1735787448212,1.63068,3392.1,3392.0,0.29538]
[1735787448411,1.3353,3392.1,3392.0,0.29538]
[1735787448608,1.63068,3392.1,3391.9,4.3758]
[1735787448915,0.8637,3392.1,3392.0,0.29538]
[1735787452416,0.8637,3392.1,3391.8,1.168]
[1735787452616,0.8637,3392.1,3391.8,1.4634]
[1735787452818,0.29538,3392.0,3391.8,1.4634]
[1735787455013,0.29538,3392.0,3391.8,1.168]
[1735787455317,0.29538,3392.0,3391.9,0.29539]
[1735787456014,1.15908,3392.1,3392.0,0.29538]
[1735787456220,0.8637,3392.1,3392.0,0.29538]
[1735787462417,0.8637,3392.1,3391.9,3.2078]
[1735787462622,0.29538,3392.0,3391.8,1.4634]
[1735787463118,0.29538,3392.0,3391.8,1.168]
[1735787463321,0.29538,3392.0,3391.9,0.29539]
[1735787464024,0.29538,3392.0,3391.8,1.168]
[1735787464218,0.29538,3392.0,3391.8,1.46339]
[1735787465121,0.29538,3392.0,3391.9,0.29539]
[1735787467812,1.15908,3392.1,3392.0,0.29538]
[1735787468213,0.29539,3392.0,3391.9,0.29538]
[1735787469823,0.8637,3392.1,3392.0,0.29538]
[1735787470921,0.4227,3392.2,3392.1,0.29537]
[1735787471227,0.8774,3392.5,3392.4,0.29535]
[1735787472428,0.4459,3392.5,3392.4,0.29535]
[1735787475929,0.4599,3392.7,3392.6,0.29533]
[1735787476235,0.4599,3392.7,3392.6,1.46233]
[1735787477128,0.75522,3392.7,3392.6,1.167]
[1735787477333,1.18122,3392.7,3392.6,1.167]
[1735787477521,0.29534,3392.6,3392.4,0.29534]
[1735787478326,2.67399086,3392.6,3392.4,0.29534]
[1735787481732,2.37865086,3392.6,3392.4,0.29534]
[1735787481935,0.29536,3392.3,3392.1,0.29537]
[1735787482134,2.37865086,3392.6,3392.1,0.29537]
[1735787482135,1.3323,3392.2,3392.1,0.29537]
[1735787482335,2.37788149,3392.2,3392.1,0.29537]
[1735787493239,8.12142141,3393.0,3392.0,2.21258149]
[1735787493545,1.04558149,3392.7,3392.6,0.29533]
[1735787500142,1.3426,3392.9,3392.4,0.449]
[1735787500143,1.3426,3392.9,3392.8,0.29531]
[1735787500347,2.38818149,3392.9,3392.8,0.29531]
[1735787503752,2.62388149,3392.9,3392.8,0.29531]
[1735787503961,0.2357,3392.9,3392.8,2.50789149]
[1735787504348,0.2357,3392.9,3392.8,2.97279149]
[1735787504548,0.2357,3392.9,3392.8,43.77279149]
[1735787505051,0.2357,3392.9,3392.8,42.26231]
[1735787505251,1.28128149,3392.9,3392.8,1.46231]
[1735787506153,1.28128149,3392.9,3392.8,1.167]
[1735787506356,1.28128149,3392.9,3392.8,1.46231]
[1735787509945,1.51698149,3392.9,3392.8,1.46231]
[1735787510748,1.51698149,3392.9,3392.8,1.90111]
[1735787511862,1.51698149,3392.9,3392.8,1.46231]
[1735787512061,0.4714,3392.9,3392.8,1.46231]
[1735787512459,1.51698149,3392.9,3392.8,1.46231]
[1735787513152,1.51698149,3392.9,3392.8,1.167]
[1735787513356,1.81228149,3392.9,3392.8,1.167]
[1735787513662,0.29533,3392.7,3392.5,0.29533]
[1735787513863,1.04558149,3392.6,3392.5,0.29533]
[1735787514065,1.47678149,3392.6,3392.5,0.29533]
[1735787515357,1.71258149,3392.6,3392.5,0.29533]
[1735787515559,2.00791149,3392.6,3392.5,0.29533]
[1735787515858,1.71258149,3392.6,3392.5,0.29533]
[1735787521366,2.00791149,3392.6,3392.5,0.29533]
[1735787522166,2.00791149,3392.6,3392.4,0.29534]
[1735787522365,1.92068149,3392.5,3392.4,0.29534]
[1735787525062,1.92068149,3392.5,3392.2,1.167]
[1735787525264,1.04558149,3392.3,3392.2,0.29536]
[1735787525468,1.34094149,3392.3,3392.2,0.29536]
[1735787526065,1.34094149,3392.3,3391.5,10.12976307]
[1735787526066,5.29896298,3392.3,3391.5,10.12976307]
[1735787526263,5.29896298,3392.3,3391.5,5.33636205]
[1735787526264,1.04558149,3391.8,3391.5,5.33636205]
[1735787526474,1.04558149,3391.6,3391.5,4.91006205]
[1735787526668,1.34100149,3391.6,3391.5,4.61464205]
[1735787526870,1.34100149,3391.6,3391.5,4.91006205]
[1735787527265,1.34100149,3391.6,3391.5,4.61464205]
[1735787527472,1.04558149,3391.6,3391.4,1.95438479]
[1735787527671,0.29542,3391.5,3391.4,1.95438479]
[1735787527872,1.34100149,3391.6,3391.4,1.95438479]
[1735787528778,0.29545,3391.2,3391.1,3.50326]
[1735787528979,1.04558149,3391.2,3391.1,3.50326]
[1735787529380,1.80773149,3391.2,3391.1,3.50326]
[1735787529779,1.51228149,3391.2,3391.1,3.50326]
[1735787529969,1.80773149,3391.2,3391.1,3.50326]
[1735787530681,1.80773149,3391.2,3391.1,3.2078]
[1735787530879,1.80773149,3391.2,3391.1,3.50326]
[1735787531981,1.80773149,3391.2,3391.1,0.29546]
[1735787532280,0.76215,3391.2,3391.1,0.29546]
[1735787532484,0.4667,3391.2,3391.1,0.29546]
[1735787535281,0.76215,3391.2,3391.1,0.29546]
[1735787536281,0.29546,3391.1,3391.0,0.29547]
[1735787536582,1.18866,3391.1,3391.0,0.29547]
[1735787536873,0.8932,3391.1,3391.0,0.29547]
[1735787537668,1.18866,3391.1,3391.0,0.29547]
[1735787538778,0.8932,3391.1,3390.9,1.167]
[1735787539280,1.18866,3391.1,3390.9,1.46247]
[1735787539673,3.2078,3391.0,3389.9,3.2078]
[1735787539874,2.38017397,3390.4,3390.2,0.29554]
[1735787540478,2.83637397,3390.4,3390.2,0.29554]
[1735787540669,3.13189397,3390.4,3390.2,0.29554]
[1735787540869,3.57239397,3390.4,3390.2,0.29554]
[1735787541879,0.29553,3390.3,3390.1,0.72194]
[1735787542280,3.27687397,3390.4,3389.9,4.3748]
[1735787542281,0.29555,3390.1,3389.9,4.3748]
[1735787542868,0.29555,3390.1,3389.9,3.2078]
[1735787544283,2.67572397,3390.1,3389.9,3.2078]
[1735787545381,2.67572397,3390.1,3389.7,0.29558]
[1735787545772,2.67572397,3390.1,3389.5,1.167]
[1735787545978,2.67572397,3390.1,3389.8,0.29557]
[1735787546483,2.67572397,3390.1,3390.0,0.29556]
[1735787546984,0.29556,3390.0,3389.9,0.29556]
[1735787547179,2.38017397,3390.1,3389.9,0.29556]
[1735787547886,0.29556,3390.0,3389.9,0.29556]
[1735787548078,2.38017397,3390.1,3389.9,0.29556]
[1735787548285,0.29556,3390.0,3389.9,0.29556]
[1735787548585,2.38017397,3390.1,3389.9,0.29556]
[1735787548879,0.29556,3390.0,3389.9,0.29556]
[1735787549082,0.29557,3389.9,3389.7,0.29557]
[1735787549283,0.4407,3389.8,3389.7,0.29557]
[1735787549882,0.4407,3389.8,3389.4,0.4494]
[1735787549883,0.73628,3389.8,3389.6,0.29558]
[1735787550080,0.456,3389.7,3389.6,0.29558]
[1735787550979,0.456,3389.7,3389.4,0.745]
[1735787550980,0.2956,3389.5,3389.4,0.745]
[1735787551179,2.67577397,3389.5,3389.4,0.74501]
[1735787551382,2.67577397,3389.5,3389.3,3.2078]
[1735787551383,0.29561,3389.4,3389.3,3.2078]
[1735787551582,0.72391,3389.4,3389.3,3.2078]
[1735787552183,0.4283,3389.4,3389.3,3.2078]
[1735787554179,0.4283,3389.4,3389.3,3.50342]
[1735787554781,2.38017397,3389.5,3389.3,3.2078]
[1735787555090,0.9127,3389.7,3389.6,0.29559]
[1735787555291,0.9127,3389.7,3389.5,0.29559]
[1735787555292,0.2956,3389.6,3389.5,0.29559]
[1735787555791,0.9127,3389.7,3389.3,3.2078]
[1735787556088,1.20829,3389.7,3389.6,0.29559]
[1735787557188,2.82087397,3389.8,3389.7,0.29558]
[1735787557691,0.4407,3389.8,3389.7,0.29558]
[1735787557893,0.29556,3389.9,3389.8,0.29557]
[1735787558685,0.4327,3390.0,3389.6,0.4418]
[1735787558890,0.4327,3390.0,3389.9,0.29556]
[1735787559486,0.72826,3390.0,3389.9,0.29556]
[1735787560587,0.4327,3390.0,3389.9,0.29556]
[1735787561093,0.72826,3390.0,3389.9,0.29556]
[1735787563496,0.4327,3390.0,3389.6,3.6496]
[1735787563692,0.29557,3389.9,3389.8,0.29557]
[1735787564390,0.72826,3390.0,3389.8,0.29557]
[1735787565895,0.29556,3389.9,3389.8,0.29557]
[1735787566394,0.29558,3389.7,3389.6,3.2078]
[1735787566591,2.67575397,3389.7,3389.6,3.2078]
[1735787567695,2.67575397,3389.7,3389.6,3.50339]
[1735787568294,2.67575397,3389.7,3389.6,3.2078]
[1735787568695,2.67575397,3389.7,3389.6,3.50339]
[1735787568994,2.67575397,3389.7,3389.6,3.2078]
[1735787569696,2.67575397,3389.7,3389.6,3.50339]
[1735787570592,2.38017397,3389.7,3389.6,3.50339]
[1735787570792,2.38017397,3389.7,3389.6,3.2078]
[1735787570992,2.67575397,3389.7,3389.6,3.50339]
[1735787573100,2.81287397,3390.0,3389.6,3.2078]
[1735787573302,0.29557,3389.9,3389.8,0.29556]
[1735787574188,2.81287397,3390.0,3389.6,3.2078]
[1735787574389,2.81287397,3390.0,3389.9,0.29556]
[1735787574801,2.38017397,3390.0,3389.9,0.29556]
[1735787575905,2.67573397,3390.0,3389.9,0.29556]
[1735787577703,2.38017397,3390.0,3389.9,0.29556]
[1735787578306,0.7374,3390.0,3389.8,2.38017397]
[1735787578506,0.7374,3390.0,3389.9,0.29556]
[1735787578703,0.9733,3390.0,3389.9,0.29556]
[1735787589314,0.9733,3390.0,3389.9,0.73816]
[1735787594316,0.9733,3390.0,3389.9,1.78474877]
[1735787595710,6.96431467,3391.2,3389.9,7.65533775]
[1735787596019,6.96431467,3391.2,3391.0,0.29547]
[1735787596020,1.297,3391.1,3391.0,0.29547]
[1735787596221,1.297,3391.1,3391.0,1.46247]
[1735787598623,3.97230456,3391.1,3391.0,1.167]
[1735787599019,0.29548,3390.9,3390.8,0.29548]
[1735787599522,3.67684456,3391.1,3390.7,3.2078]
[1735787599723,0.29547,3391.0,3390.9,0.29547]
[1735787606226,1.297,3391.1,3391.0,0.29547]
[1735787606227,1.59246,3391.1,3391.0,0.29547]
[1735787609120,1.297,3391.1,3391.0,0.29547]
[1735787612528,0.8721,3391.1,3391.0,0.29547]
[1735787612734,0.4412,3391.1,3391.0,0.29547]
[1735787612933,0.4493,3391.4,3391.3,0.29544]
[1735787614734,0.92,3391.6,3391.5,0.29542]
[1735787618738,1.1558,3391.6,3391.5,0.29542]
[1735787620433,0.29542,3391.5,3391.4,1.46243]
[1735787620829,0.29542,3391.5,3391.0,0.4488]
[1735787620830,1.1558,3391.6,3391.2,1.166]
[1735787621131,0.4506,3391.4,3391.3,0.29544]
[1735787624133,1.1558,3391.6,3391.5,0.29542]
[1735787625841,0.699,3391.6,3391.5,0.29542]
[1735787627340,0.9348,3391.6,3391.5,0.29542]
[1735787630841,0.4716,3391.6,3391.5,0.29542]
[1735787631248,0.4716,3391.6,3391.5,0.75562]
[1735787634944,0.4716,3391.6,3391.5,0.29542]
[1735787635246,0.29543,3391.4,3391.3,3.50324]
[1735787635436,1.34133079,3391.4,3391.3,4.66924]
[1735787635642,1.04590079,3391.4,3391.3,4.66924]
[1735787635841,0.74223,3391.5,3391.4,0.29543]
[1735787637940,0.29543,3391.4,3391.3,4.66924]
[1735787638143,0.4468,3391.5,3391.3,4.3738]
[1735787638444,0.74223,3391.5,3391.4,0.29543]
[1735787640247,0.74223,3391.5,3391.3,4.3738]
[1735787640248,0.29543,3391.4,3391.3,4.66924]
[1735787640739,0.29543,3391.4,3391.3,1.46144]
[1735787642047,1.04590079,3391.4,3391.1,1.166]
[1735787642242,1.34134079,3391.4,3391.3,0.29544]
[1735787642438,0.29544,3391.3,3391.2,0.29545]
[1735787642943,1.04590079,3391.4,3391.2,0.29545]
[1735787643138,1.34134079,3391.4,3391.1,1.166]
[1735787643342,1.34134079,3391.4,3391.3,0.29544]
[1735787644648,1.34134079,3391.4,3391.2,0.29545]
[1735787645548,1.04590079,3391.4,3391.3,0.29544]
[1735787646051,1.34133079,3391.4,3391.3,0.29544]
[1735787646446,1.34133079,3391.4,3391.2,0.29545]
[1735787646746,1.04590079,3391.4,3391.3,0.29544]
[1735787647043,0.74223,3391.5,3391.4,0.29543]
[1735787647639,0.4468,3391.5,3391.4,0.29543]
[1735787649649,0.74222,3391.5,3391.4,0.29543]
[1735787650448,0.74222,3391.5,3391.1,1.5865]
[1735787650449,0.29544,3391.4,3391.3,0.29544]
[1735787651052,0.29547,3391.0,3390.9,1.46147]
[1735787651253,0.29547,3391.0,3390.9,1.46148]
[1735787651254,1.04590079,3391.0,3390.9,1.46148]
[1735787651459,1.34136079,3391.2,3391.1,0.29545]
[1735787652651,0.29544,3391.3,3390.9,1.166]
[1735787652852,0.29544,3391.3,3391.1,0.29546]
[1735787653049,0.4468,3391.5,3391.0,1.51130079]
[1735787653246,0.4468,3391.5,3391.4,0.29543]
[1735787653451,0.74222,3391.5,3391.4,0.29543]
[1735787653657,0.4468,3391.5,3391.4,0.29543]
[1735787654572,0.4468,3391.5,3391.4,0.76083]
[1735787660979,0.8851,3391.6,3391.5,0.29542]
[1735787661279,0.4216,3391.6,3391.5,0.29542]
[1735787661779,0.2358,3391.6,3391.5,0.29542]
[1735787663279,0.2358,3391.6,3391.5,0.74072]
[1735787668776,0.4716,3391.6,3391.5,0.74072]
[1735787674384,0.4716,3391.6,3391.5,1.90672]
[1735787674786,0.4716,3391.6,3391.5,1.46142]
[1735787675184,0.9158,3391.6,3391.5,1.46142]
[1735787676092,1.21122,3391.6,3391.5,0.29542]
[1735787676284,1.66482,3391.6,3391.5,1.46142]
[1735787676588,2.71072079,3391.6,3391.5,1.46142]
[1735787677291,1.3694,3391.6,3391.5,1.46142]
[1735787678691,1.66482,3391.6,3391.5,1.46142]
[1735787679284,1.3694,3391.6,3391.5,1.46142]
[1735787679981,1.66482,3391.6,3391.5,1.46142]
[1735787681985,1.3694,3391.6,3391.5,1.46142]
[1735787682684,1.66482,3391.6,3391.5,1.46142]
[1735787683286,2.71072079,3391.6,3391.5,1.166]
[1735787684594,0.29543,3391.4,3391.3,3.50324]
[1735787684792,0.29543,3391.4,3391.0,4.63725909]
[1735787684793,1.04590079,3391.4,3391.0,4.63725909]
[1735787684996,1.04590079,3391.4,3390.8,10.16368863]
[1735787684997,0.29547,3391.0,3390.9,1.46047]
[1735787685196,1.04590079,3391.4,3390.9,1.165]
[1735787685496,0.29546,3391.1,3391.0,0.29547]
[1735787686188,0.29546,3391.1,3390.9,1.165]
[1735787686391,0.4497,3391.0,3390.9,1.46047]
[1735787686596,0.8778,3391.0,3390.9,1.46047]
[1735787697300,0.8778,3391.0,3390.9,1.46147]
[1735787703900,0.8778,3391.0,3390.9,1.88437]
[1735787705004,3.2078,3391.8,3390.9,1.5889]
[1735787705308,1.3226,3391.7,3391.6,0.29541]
[1735787707304,1.61801,3391.7,3391.6,0.29541]
[1735787710602,1.3226,3391.7,3391.6,0.29541]
[1735787713707,0.9019,3391.7,3391.6,0.29541]
[1735787714710,1.1377,3391.7,3391.6,0.29541]
[1735787716619,0.6908,3391.7,3391.6,1.34131079]
[1735787717322,0.2358,3391.7,3391.6,1.34131079]
[1735787718018,0.4716,3391.7,3391.6,1.34131079]
[1735787720423,0.4716,3391.7,3391.6,42.14131079]
[1735787721113,8.12142141,3393.0,3392.9,0.2953]
[1735787721415,8.12142141,3393.0,3392.9,5.71400079]
[1735787722320,0.901,3393.5,3393.4,0.29526]
[1735787723021,0.901,3393.5,3393.3,0.29526]